bitfinex/quotes_SOLUSD_20241009
["timestamp","ask_amount","ask_price","bid_price","bid_amount"]
[1728491441610,7.0732,141.38,141.33,17.6885]
[1728491442044,7.0732,141.38,141.34,7.0747]
[1728491442346,7.0727,141.39,141.33,17.6885]
[1728491442639,7.0727,141.39,141.35,7.0742]
[1728491443316,7.0727,141.39,141.34,7.0749]
[1728491443628,7.0727,141.39,141.35,7.0745]
[1728491443827,40.68052024,141.42,141.35,7.0745]
[1728491443828,7.32268,141.41,141.36,7.0738]
[1728491444131,30.07322024,141.42,141.38,7.073]
[1728491444345,15.6174,141.42,141.33,15.346]
[1728491444641,7.0735,141.38,141.34,17.6871]
[1728491445535,7.0735,141.38,141.34,24.7621]
[1728491446328,0.25098,141.41,141.35,8.48942567]
[1728491446537,0.25098,141.41,141.35,8.48934582]
[1728491446719,7.0726,141.39,141.35,8.48934582]
[1728491447934,7.0726,141.39,141.35,7.0746]
[1728491448234,0.25098,141.41,141.34,17.6871]
[1728491448436,7.0737,141.37,141.33,7.0754]
[1728491449310,17.93028,141.41,141.33,7.0754]
[1728491449525,7.0732,141.38,141.34,8.48957287]
[1728491449720,7.0724,141.4,141.34,1.41487287]
[1728491449935,7.0727,141.39,141.35,17.6861]
[1728491450141,7.0731,141.38,141.35,17.6861]
[1728491450526,7.0727,141.39,141.35,26.17546054]
[1728491453549,15.6174,141.42,141.35,26.17546054]
[1728491453550,15.6174,141.42,141.35,19.10086054]
[1728491453748,7.0719,141.41,141.37,7.0736]
[1728491454044,15.6174,141.42,141.35,17.6861]
[1728491454645,7.0716,141.41,141.37,7.0734]
[1728491455030,15.6174,141.42,141.35,17.6861]
[1728491455234,7.0725,141.4,141.36,7.0739]
[1728491456448,7.0725,141.4,141.37,7.0736]
[1728491456624,7.0717,141.41,141.37,7.0736]
[1728491457233,7.0721,141.4,141.36,7.0739]
[1728491458052,0.25098,141.43,141.36,7.0739]
[1728491458235,7.0726,141.39,141.35,24.7607]
[1728491458435,7.0732,141.38,141.35,17.6861]
[1728491460959,7.0732,141.38,141.34,7.075]
[1728491461259,7.0749,141.35,141.31,7.0765]
[1728491461454,7.0752,141.34,141.29,17.6933]
[1728491461752,17.80859,141.38,141.29,17.6933]
[1728491461753,7.0757,141.33,141.29,24.7707]
[1728491462467,7.0771,141.3,141.26,7.0787]
[1728491462667,7.0784,141.28,141.23,7.0802]
[1728491462956,7.0784,141.28,141.24,7.08]
[1728491463154,7.0781,141.28,141.23,7.0805]
[1728491463340,0.25098,141.31,141.22,24.7834]
[1728491463547,7.0787,141.27,141.22,24.7834]
[1728491463757,7.0787,141.27,141.23,7.0805]
[1728491465644,0.25098,141.31,141.23,8.49646854]
[1728491465645,7.0781,141.29,141.23,8.49646854]
[1728491465845,7.0772,141.3,141.25,7.0792]
[1728491466055,7.0772,141.3,141.25,8.49496685]
[1728491466262,7.0777,141.29,141.25,7.0792]
[1728491466563,7.0777,141.29,141.25,8.49496789]
[1728491466861,7.32798,141.31,141.26,7.0791]
[1728491467044,7.20249,141.31,141.25,1.41576789]
[1728491467364,7.20219,141.31,141.27,7.0784]
[1728491467664,0.12549,141.31,141.27,7.0784]
[1728491467841,0.12549,141.31,141.26,26.19189488]
[1728491467842,7.0771,141.3,141.26,26.19189488]
[1728491468564,6.3005,141.33,141.27,7.0785]
[1728491468851,17.6873,141.35,141.28,7.078]
[1728491468852,7.0764,141.32,141.28,7.078]
[1728491469061,7.0764,141.32,141.27,7.0785]
[1728491469360,7.0764,141.32,141.28,7.078]
[1728491470059,0.25098,141.34,141.26,17.6972]
[1728491470244,7.0766,141.31,141.27,7.0785]
[1728491470857,0.25098,141.34,141.26,24.7762]
[1728491471049,0.25098,141.34,141.21,21.7882]
[1728491471050,0.25098,141.32,141.23,17.7008]
[1728491471242,7.0791,141.26,141.23,17.7008]
[1728491471566,7.0796,141.25,141.21,7.0815]
[1728491471734,0.25098,141.28,141.2,17.7048]
[1728491471939,7.0805,141.24,141.2,24.7867]
[1728491472662,7.0797,141.25,141.2,24.7867]
[1728491473848,7.0797,141.25,141.2,17.7048]
[1728491474141,7.0797,141.25,141.21,7.0813]
[1728491474545,7.0802,141.24,141.2,17.7048]
[1728491474740,7.0802,141.24,141.2,24.7869]
[1728491475264,7.0802,141.24,141.21,1.41619573]
[1728491475640,0.25098,141.28,141.21,1.41619573]
[1728491475965,0.12549,141.26,141.17,38.9869]
[1728491476147,7.0813,141.22,141.18,7.083]
[1728491477153,0.12549,141.26,141.19,1.41635797]
[1728491477471,17.6962,141.28,141.2,1.41622385]
[1728491477648,7.0796,141.25,141.21,24.7852]
[1728491478254,7.0796,141.25,141.21,17.7038]
[1728491480762,0.25098,141.27,141.21,1.41615718]
[1728491480973,7.0802,141.24,141.21,1.41615718]
[1728491481157,7.0802,141.24,141.2,7.0818]
[1728491481861,0.25098,141.27,141.23,7.0804]
[1728491481862,7.0789,141.27,141.23,7.0804]
[1728491482062,22.5647,141.29,141.25,7.0794]
[1728491482443,7.0782,141.28,141.24,24.7799]
[1728491482969,7.37562222,141.31,141.25,1.41591287]
[1728491483142,7.0776,141.29,141.25,8.49521287]
[1728491483349,7.37562222,141.31,141.25,8.49521287]
[1728491483350,7.0771,141.3,141.26,7.079]
[1728491483537,7.37562222,141.31,141.27,7.0781]
[1728491483739,21.534,141.33,141.27,7.0781]
[1728491484048,7.077,141.31,141.27,7.0781]
[1728491484255,7.0771,141.3,141.26,24.7758]
[1728491485049,21.534,141.33,141.26,24.7758]
[1728491485050,21.534,141.33,141.26,17.6969]
[1728491485345,7.0776,141.29,141.26,17.6969]
[1728491486251,7.0785,141.28,141.24,7.08]
[1728491486468,7.0777,141.29,141.25,7.0795]
[1728491487064,7.0773,141.3,141.26,7.0791]
[1728491489054,0.25098,141.32,141.25,17.6989]
[1728491489244,0.25098,141.3,141.22,17.7019]
[1728491489444,0.25098,141.3,141.22,24.7827]
[1728491489445,7.0792,141.26,141.22,24.7827]
[1728491489663,7.0802,141.24,141.21,7.0816]
[1728491489876,7.0797,141.25,141.22,7.0811]
[1728491490169,7.0792,141.26,141.22,7.0811]
[1728491491653,7.0796,141.25,141.22,7.0811]
[1728491491854,0.25098,141.28,141.22,7.0811]
[1728491492049,7.0793,141.26,141.22,7.0811]
[1728491492366,7.0787,141.27,141.23,7.0805]
[1728491493567,7.0787,141.27,141.24,7.08]
[1728491493772,17.6914,141.32,141.24,7.08]
[1728491493962,7.078,141.29,141.25,24.7785]
[1728491494283,17.6931,141.3,141.22,17.7019]
[1728491494461,7.38202698,141.31,141.19,17.7059]
[1728491494650,7.0802,141.24,141.21,7.0816]
[1728491495046,7.0802,141.24,141.2,8.49807168]
[1728491495276,7.0802,141.24,141.2,7.0819]
[1728491496151,7.0802,141.24,141.2,8.49809285]
[1728491496584,0.12549,141.3,141.2,22.49060473]
[1728491496760,7.0786,141.27,141.2,22.49060473]
[1728491497147,7.0791,141.26,141.23,24.7816]
[1728491497367,7.0791,141.26,141.23,17.7011]
[1728491497674,7.0804,141.24,141.2,24.7862]
[1728491497860,7.0797,141.25,141.21,7.0815]
[1728491498053,7.0792,141.26,141.22,7.0809]
[1728491498267,7.0792,141.26,141.22,8.49691545]
[1728491498477,7.0792,141.26,141.22,7.0809]
[1728491499949,17.6945,141.29,141.22,7.0809]
[1728491500183,7.0796,141.25,141.22,7.0809]
[1728491501678,7.0796,141.25,141.21,7.0813]
[1728491502277,7.0796,141.25,141.21,8.49742845]
[1728491502662,7.0796,141.25,141.22,7.0811]
[1728491503352,0.25098,141.3,141.22,17.7027]
[1728491503580,7.0788,141.27,141.24,7.08]
[1728491503781,7.0784,141.28,141.24,7.08]
[1728491504578,7.0787,141.27,141.23,8.49611244]
[1728491504886,7.0787,141.27,141.23,1.41601244]
[1728491505182,7.0787,141.27,141.24,7.0801]
[1728491505676,7.0779,141.29,141.25,7.0795]
[1728491505855,7.0783,141.28,141.24,24.7797]
[1728491506051,7.38202698,141.31,141.2,21.07441188]
[1728491506382,7.0796,141.25,141.21,24.7851]
[1728491507176,17.81929,141.3,141.21,17.7038]
[1728491507382,7.0793,141.26,141.22,8.49693763]
[1728491507759,7.0804,141.24,141.21,17.7038]
[1728491507976,7.0804,141.24,141.21,24.7854]
[1728491508888,7.0798,141.25,141.21,24.7854]
[1728491509980,7.0798,141.25,141.21,17.7038]
[1728491510181,7.0798,141.25,141.22,7.081]
[1728491510386,7.0806,141.24,141.18,38.78131188]
[1728491510580,16.37738,141.27,141.2,7.0821]
[1728491510882,17.6979,141.26,141.18,17.7069]
[1728491511079,7.0809,141.23,141.19,7.0826]
[1728491515180,17.6979,141.26,141.18,17.7069]
[1728491515391,17.6979,141.26,141.19,7.0825]
[1728491515392,7.0808,141.23,141.19,7.0825]
[1728491517269,0.25098,141.25,141.18,17.7069]
[1728491517467,0.25098,141.25,141.21,7.0814]
[1728491517468,7.0799,141.25,141.21,7.0814]
[1728491517783,7.0799,141.25,141.2,17.7053]
[1728491517784,7.0807,141.23,141.2,17.7053]
[1728491518880,7.0821,141.2,141.17,17.7081]
[1728491519185,0.25098,141.24,141.17,17.7081]
[1728491519371,7.0812,141.22,141.18,8.49958777]
[1728491519577,7.0812,141.22,141.18,7.083]
[1728491519781,7.0819,141.21,141.17,24.7916]
[1728491521193,7.0819,141.21,141.17,17.7081]
[1728491521384,7.0822,141.2,141.17,17.7081]
[1728491523091,7.0832,141.18,141.14,41.389445]
[1728491523296,7.0832,141.18,141.15,7.0845]
[1728491523990,7.0832,141.18,141.14,25.640445]
[1728491524681,7.0825,141.2,141.16,24.7944]
[1728491524891,7.0827,141.19,141.16,17.7103]
[1728491525089,7.0834,141.18,141.14,7.928845]
[1728491526091,7.0837,141.17,141.14,0.843945]
[1728491526495,0.25098,141.2,141.14,2.26078393]
[1728491526784,0.12549,141.2,141.15,7.0845]
[1728491527006,7.0831,141.18,141.14,7.928945]
[1728491527584,0.12549,141.2,141.15,7.0843]
[1728491527785,0.12549,141.2,141.14,7.928745]
[1728491528298,7.0834,141.18,141.14,7.928745]
[1728491530278,7.0837,141.17,141.14,0.843945]
[1728491530607,7.0838,141.17,141.14,0.843945]
[1728491530896,7.0846,141.15,141.14,0.843945]
[1728491531109,7.0843,141.16,141.14,0.843945]
[1728491531276,17.83219,141.19,141.14,0.843945]
[1728491531477,7.0842,141.16,141.14,0.843945]
[1728491531778,7.0846,141.15,141.14,0.843945]
[1728491531990,7.0845,141.16,141.14,0.843945]
[1728491533190,17.83219,141.19,141.14,0.843945]
[1728491533398,7.0846,141.15,141.14,0.843945]
[1728491538491,7.33558,141.15,141.14,0.843945]
[1728491540291,23.12648,141.15,141.14,0.843945]
[1728491541694,7.0882,141.08,141.05,0.2]
[1728491542594,7.088,141.09,141.05,7.2896]
[1728491542816,7.0871,141.1,141.06,7.0887]
[1728491543118,7.0857,141.13,141.09,7.0875]
[1728491543413,7.0861,141.12,141.08,20.60395682]
[1728491543915,7.0861,141.12,141.08,7.0879]
[1728491544123,7.0877,141.09,141.05,20.80535682]
[1728491544421,7.0872,141.1,141.06,7.0891]
[1728491544598,7.0872,141.1,141.06,8.50669468]
[1728491544995,7.0872,141.1,141.06,7.0891]
[1728491545315,7.0872,141.1,141.07,1.41753452]
[1728491545700,7.0872,141.1,141.06,7.0891]
[1728491546016,7.0872,141.1,141.07,1.41755569]
[1728491546397,7.0868,141.11,141.07,8.50615569]
[1728491546611,7.0868,141.11,141.05,0.2]
[1728491546612,0.12549,141.11,141.05,0.2]
[1728491546808,7.0891,141.06,141.05,0.2]
[1728491547318,7.087,141.11,141.07,7.0885]
[1728491547693,17.7132,141.14,141.05,0.2]
[1728491547919,0.12549,141.13,141.05,0.2]
[1728491548217,17.7157,141.12,141.05,1.6176362]
[1728491548424,7.088,141.09,141.05,7.2896]
[1728491549216,17.7157,141.12,141.05,1.61763899]
[1728491549518,7.0878,141.09,141.05,26.43043899]
[1728491549823,7.62729245,141.13,141.05,26.43043899]
[1728491549824,7.0886,141.07,141.05,0.2]
[1728491550519,17.7171,141.11,141.05,1.61772004]
[1728491550724,7.0877,141.09,141.05,8.70732004]
[1728491550896,7.0873,141.1,141.06,7.0891]
[1728491551226,7.0873,141.1,141.05,1.61772004]
[1728491551227,7.0878,141.09,141.05,7.2896]
[1728491551731,7.0891,141.06,141.05,0.2]
[1728491555626,7.34008,141.06,141.05,0.2]
[1728491556519,7.21459,141.06,141.05,0.2]
[1728491556825,7.0891,141.06,141.05,0.2]
[1728491558599,7.0887,141.07,141.05,0.2]
[1728491560112,7.0891,141.06,141.05,0.2]
[1728491569510,7.38190751,141.07,141.05,7.2896]
[1728491569841,17.7163,141.12,141.06,7.0889]
[1728491569842,7.0875,141.1,141.06,7.0889]
[1728491570126,7.0876,141.1,141.06,24.8115]
[1728491570332,7.0877,141.09,141.06,17.7225]
[1728491570716,7.38187382,141.12,141.06,24.8116]
[1728491570717,7.0873,141.1,141.06,24.8116]
[1728491570921,7.38187382,141.12,141.06,24.8116]
[1728491570922,7.0867,141.11,141.07,7.0885]
[1728491571120,7.38187382,141.12,141.07,7.0885]
[1728491571305,17.7118,141.15,141.07,7.0885]
[1728491571509,7.0863,141.12,141.07,7.0885]
[1728491571710,7.0868,141.11,141.07,7.0885]
[1728491572208,7.0871,141.1,141.06,24.8116]
[1728491572418,7.0879,141.09,141.05,7.2895]
[1728491572632,0.25098,141.12,141.05,0.2]
[1728491572849,7.0891,141.06,141.05,0.2]
[1728491573431,7.0887,141.07,141.05,0.2]
[1728491573733,25.09204017,141.15,141.06,17.7222]
[1728491574119,7.0875,141.1,141.06,24.8113]
[1728491575241,7.0875,141.1,141.06,17.7222]
[1728491576713,7.0875,141.1,141.06,24.8112]
[1728491576909,0.12549,141.14,141.06,17.7222]
[1728491577233,7.0866,141.11,141.07,7.0885]
[1728491577936,7.0866,141.11,141.06,33.2877]
[1728491577937,7.0871,141.1,141.06,40.3766]
[1728491578547,25.09204017,141.15,141.08,7.0877]
[1728491578835,7.37974017,141.15,141.09,1.41735062]
[1728491579041,7.37974017,141.15,141.11,7.0862]
[1728491579218,7.0848,141.15,141.12,1.41707962]
[1728491579413,7.0837,141.17,141.13,7.0855]
[1728491579621,7.39566487,141.19,141.08,27.16392976]
[1728491579821,7.39566487,141.19,141.1,7.087]
[1728491579822,7.0852,141.14,141.1,7.087]
[1728491580218,7.0847,141.15,141.1,7.087]
[1728491580536,7.0855,141.14,141.09,24.8056]
[1728491580743,0.25098,141.16,141.09,17.7183]
[1728491580920,7.086,141.13,141.09,17.7183]
[1728491581721,7.086,141.13,141.09,24.8057]
[1728491581923,7.0852,141.14,141.1,8.5043252]
[1728491582325,7.0852,141.14,141.1,1.4172252]
[1728491582942,24.2835,141.2,141.11,17.716]
[1728491583116,7.0838,141.17,141.13,7.0852]
[1728491583834,7.0838,141.17,141.11,17.716]
[1728491584043,7.0838,141.17,141.12,7.086]
[1728491584416,7.0838,141.17,141.13,8.50233297]
[1728491585424,7.0838,141.17,141.13,7.0855]
[1728491586037,16.4035,141.21,141.14,1.41684272]
[1728491586357,7.0807,141.23,141.18,7.0827]
[1728491586525,7.0807,141.23,141.17,17.7086]
[1728491586526,7.0807,141.23,141.19,8.49894786]
[1728491586719,7.0807,141.23,141.19,1.41634786]
[1728491586931,15.7525,141.24,141.17,17.7086]
[1728491587119,7.0822,141.2,141.14,24.3166]
[1728491587540,7.0822,141.2,141.15,7.0842]
[1728491587941,7.0822,141.2,141.16,7.084]
[1728491589042,7.0822,141.2,141.16,7.0841]
[1728491589347,33.4533,141.24,141.17,7.0835]
[1728491589348,7.0817,141.21,141.17,7.0835]
[1728491590327,7.0817,141.21,141.16,7.0839]
[1728491591447,0.25098,141.23,141.17,17.7088]
[1728491591635,7.082,141.21,141.17,24.7923]
[1728491592029,7.0807,141.23,141.19,7.0826]
[1728491592826,7.0812,141.22,141.18,7.083]
[1728491593326,7.40251497,141.24,141.14,6.6044]
[1728491593530,7.0813,141.22,141.15,1.41657342]
[1728491594050,7.40251497,141.24,141.14,27.74372976]
[1728491594051,7.40251497,141.24,141.16,17.7099]
[1728491594226,7.0816,141.21,141.17,7.0835]
[1728491594843,7.0821,141.2,141.16,24.7938]
[1728491596059,7.0816,141.21,141.17,7.0833]
[1728491597233,7.40251497,141.24,141.18,1.41648697]
[1728491597558,7.081,141.23,141.19,7.0825]
[1728491598255,7.0811,141.22,141.19,7.0825]
[1728491598435,7.0811,141.22,141.18,17.7075]
[1728491598751,7.0811,141.22,141.18,24.7905]
[1728491600256,17.95268,141.23,141.15,17.7106]
[1728491600545,7.0838,141.17,141.13,7.0855]
[1728491601461,7.0838,141.17,141.14,7.0851]
[1728491601639,17.83019,141.21,141.14,7.0851]
[1728491601836,7.0833,141.18,141.14,7.0851]
[1728491603243,17.83019,141.21,141.12,33.703]
[1728491603560,7.0841,141.16,141.12,40.7888]
[1728491604366,7.0837,141.17,141.13,7.0856]
[1728491605841,7.0848,141.15,141.12,17.7151]
[1728491606042,20.25098,141.18,141.08,16.4941]
[1728491606264,7.0871,141.1,141.06,30.8575]
[1728491606462,0.25098,141.15,141.05,7.2895]
[1728491606463,7.0878,141.09,141.05,7.2895]
[1728491606675,32.7412,141.13,141.05,0.2]
[1728491606676,7.0883,141.08,141.05,0.2]
[1728491606839,17.7174,141.11,141.05,0.2]
[1728491607168,7.0878,141.09,141.05,7.2896]
[1728491607359,7.0881,141.08,141.05,0.2]
[1728491608851,7.0889,141.07,141.05,0.2]
[1728491609172,24.027864,141.1,141.05,0.2]
[1728491609374,7.0891,141.06,141.05,0.2]
[1728491610581,0.25098,141.1,141.05,0.2]
[1728491610965,7.0885,141.08,141.05,0.2]
[1728491611163,7.0891,141.07,141.05,0.2]
[1728491611474,7.0891,141.06,141.05,0.2]
[1728491615383,24.027864,141.1,141.05,0.2]
[1728491615677,7.0887,141.07,141.05,0.2]
[1728491616455,7.0879,141.09,141.05,7.2893]
[1728491616680,7.0882,141.08,141.05,0.2]
[1728491617261,7.0873,141.1,141.05,0.2]
[1728491617580,7.0873,141.1,141.05,1.61774639]
[1728491617777,7.0877,141.09,141.05,0.2]
[1728491618276,7.0891,141.06,141.05,0.2]
[1728491622679,7.34008,141.06,141.05,0.2]
[1728491627381,7.0916,141.01,141.0,0.843945]
[1728491628462,7.34258,141.01,141.0,0.843945]
[1728491628659,7.0916,141.01,141.0,0.843945]
[1728491628877,6.4878,141.04,141.0,0.843945]
[1728491629269,7.0914,141.02,141.0,0.843945]
[1728491629468,7.0916,141.01,141.0,0.843945]
[1728491630269,7.21709,141.01,141.0,0.843945]
[1728491630472,7.34258,141.01,141.0,0.843945]
[1728491631594,31.119464,141.01,141.0,0.843945]
[1728491632263,38.50830942,141.01,141.0,0.843945]
[1728491633787,7.38884542,141.01,141.0,0.843945]
[1728491633994,14.48044542,141.01,141.0,0.843945]
[1728491634171,7.0916,141.01,141.0,0.843945]
[1728491634380,27.0916,141.01,141.0,0.843945]
[1728491635478,27.34258,141.01,141.0,0.843945]
[1728491635885,51.119464,141.01,141.0,0.843945]
[1728491636961,67.46837137,141.01,141.0,0.843945]
[1728491638296,7.095,140.95,140.91,7.0965]
[1728491638699,7.0953,140.94,140.9,17.742]
[1728491638876,7.0953,140.94,140.9,24.8391]
[1728491639703,0.12549,140.96,140.9,17.742]
[1728491639900,7.0957,140.93,140.9,17.242]
[1728491640402,7.0957,140.93,140.89,22.672]
[1728491640602,7.0957,140.93,140.89,15.5744]
[1728491640812,0.12549,140.94,140.89,15.5744]
[1728491641096,7.0967,140.91,140.87,24.8441]
[1728491641501,0.12549,140.94,140.88,7.0982]
[1728491641502,7.0964,140.92,140.88,7.0982]
[1728491641674,7.0968,140.91,140.87,24.8442]
[1728491642494,7.0963,140.92,140.88,7.0982]
[1728491642965,7.0967,140.91,140.87,24.8442]
[1728491643682,7.0967,140.91,140.85,22.830545]
[1728491643683,7.0973,140.9,140.86,7.099]
[1728491643873,7.0973,140.9,140.85,29.929945]
[1728491644074,7.0978,140.89,140.85,23.752745]
[1728491644306,7.35018,140.86,140.85,0.843945]
[1728491644502,27.35018,140.86,140.85,0.343945]
[1728491645007,51.127064,140.86,140.85,0.343945]
[1728491646096,27.35018,140.86,140.85,0.343945]
[1728491646984,51.127064,140.86,140.85,0.343945]
[1728491647685,27.35018,140.86,140.85,0.343945]
[1728491648715,7.0983,140.88,140.85,0.343945]
[1728491648889,7.39703784,140.89,140.85,0.343945]
[1728491648890,7.0992,140.86,140.85,0.343945]
[1728491649987,27.35018,140.86,140.85,0.343945]
[1728491650720,27.0992,140.86,140.85,0.343945]
[1728491653412,27.35018,140.86,140.85,0.343945]
[1728491654414,51.127064,140.86,140.85,0.343945]
[1728491654994,58.5196967,140.86,140.85,0.343945]
[1728491658020,34.7428127,140.86,140.85,0.343945]
[1728491659806,58.5196967,140.86,140.85,0.343945]
[1728491660010,34.7428127,140.86,140.85,0.343945]
[1728491661610,58.5196967,140.86,140.85,0.343945]
[1728491662905,34.7428127,140.86,140.85,0.343945]
[1728491663222,14.4918327,140.86,140.85,0.343945]
[1728491664398,58.5196967,140.86,140.85,0.343945]
[1728491667526,58.5196967,140.86,140.85,4.5e-05]
[1728491671821,14.4918327,140.86,140.85,4.5e-05]
[1728491673313,34.4918327,140.86,140.85,4.5e-05]
[1728491674539,34.7428127,140.86,140.85,4.5e-05]
[1728491675318,58.5196967,140.86,140.85,4.5e-05]
[1728491677505,34.7428127,140.86,140.85,4.5e-05]
[1728491677702,34.7428127,140.86,140.85,15.447345]
[1728491677703,7.3926327,140.86,140.85,15.447345]
[1728491678026,35.4653,140.99,140.85,15.447345]
[1728491678027,35.4653,140.99,140.86,6.334]
[1728491678229,35.4653,140.99,140.88,24.8427]
[1728491678230,7.0961,140.93,140.88,24.8427]
[1728491678602,7.0961,140.93,140.89,7.0976]
[1728491679239,7.0961,140.93,140.89,8.51698912]
[1728491679525,7.0961,140.93,140.88,26.26208912]
[1728491680131,17.7334,140.98,140.88,1.41938912]
[1728491680352,7.0948,140.95,140.91,7.0965]
[1728491680517,7.0964,140.92,140.87,24.8447]
[1728491680830,7.0968,140.91,140.87,24.8447]
[1728491681008,7.0958,140.93,140.88,8.5172674]
[1728491681205,7.388377,140.99,140.88,1.4194674]
[1728491681405,20.0,140.98,140.9,7.097]
[1728491681715,20.0,140.96,140.9,8.51629008]
[1728491681928,0.25098,140.95,140.9,8.51629008]
[1728491682425,7.0952,140.94,140.89,24.8413]
[1728491683028,7.0943,140.96,140.91,7.0966]
[1728491683412,20.0,140.95,140.91,7.0966]
[1728491684237,7.0943,140.96,140.88,21.19340736]
[1728491684420,7.0943,140.96,140.91,24.8376]
[1728491684619,7.095,140.95,140.91,17.741]
[1728491685544,7.0952,140.94,140.9,7.097]
[1728491685934,7.0952,140.94,140.88,17.7447]
[1728491686143,7.096,140.93,140.88,17.7447]
[1728491686441,41.762664,140.97,140.89,1.41935609]
[1728491686612,7.0951,140.95,140.9,7.0968]
[1728491686936,7.0953,140.94,140.9,7.0968]
[1728491687125,7.0953,140.94,140.91,1.41920712]
[1728491687440,7.0957,140.93,140.89,7.0976]
[1728491687644,7.0952,140.94,140.9,8.51646335]
[1728491687825,7.0952,140.94,140.9,7.0972]
[1728491689017,7.0958,140.93,140.89,7.0976]
[1728491689447,7.0966,140.92,140.88,24.8428]
[1728491689817,7.0958,140.93,140.89,8.51703431]
[1728491691135,23.776884,140.96,140.89,8.51703431]
[1728491691336,7.0952,140.94,140.9,7.0971]
[1728491691520,7.0952,140.94,140.89,7.0975]
[1728491691718,7.0958,140.93,140.89,7.0975]
[1728491692450,20.0,140.96,140.9,17.7428]
[1728491695054,20.0,140.96,140.93,7.0955]
[1728491696339,27.0945,140.96,140.92,24.8361]
[1728491696645,27.0945,140.96,140.92,26.25509744]
[1728491697147,20.0,140.96,140.92,17.7401]
[1728491697446,7.0947,140.95,140.92,17.7401]
[1728491698145,7.0943,140.96,140.92,24.8362]
[1728491699552,7.0943,140.96,140.92,26.25519386]
[1728491700523,7.0943,140.96,140.92,24.8362]
[1728491702637,7.0939,140.97,140.93,7.0952]
[1728491702834,20.0,140.99,140.94,1.4189235]
[1728491703027,7.0927,140.99,140.94,19.1567235]
[1728491703225,7.0927,140.99,140.94,17.7378]
[1728491703449,7.0927,140.99,140.95,7.0943]
[1728491703630,7.0924,141.0,140.96,7.0941]
[1728491704460,29.48457641,141.05,140.92,6.081]
[1728491704461,17.7295,141.01,140.92,6.081]
[1728491704661,24.027864,141.0,140.92,6.081]
[1728491704830,24.027864,140.98,140.91,33.2253]
[1728491705154,24.027864,140.98,140.88,6.42]
[1728491705335,7.0955,140.94,140.9,7.097]
[1728491706364,20.0,140.97,140.91,1.41918409]
[1728491706569,20.0,140.97,140.92,17.7399]
[1728491706740,20.0,140.97,140.94,7.0951]
[1728491706941,7.34428,140.98,140.94,7.0951]
[1728491707262,7.0928,140.99,140.95,7.0946]
[1728491707561,20.0,141.01,140.94,17.7378]
[1728491708072,7.0937,140.97,140.94,17.7378]
[1728491708558,20.0,141.01,140.94,17.7378]
[1728491708764,7.0933,140.98,140.94,24.8328]
[1728491709160,7.0929,140.99,140.95,8.51339715]
[1728491709341,0.25098,141.0,140.96,7.0941]
[1728491709342,7.0926,141.0,140.96,7.0941]
[1728491709659,9.65954681,141.08,140.97,1.41866611]
[1728491709867,7.092,141.01,140.97,7.0936]
[1728491710060,7.0923,141.0,140.96,26.24786611]
[1728491710768,7.0923,141.0,140.96,24.8292]
[1728491711265,20.25098,141.02,140.95,1.41860781]
[1728491711575,7.0922,141.0,140.96,7.0939]
[1728491711870,7.0919,141.01,140.98,7.0931]
[1728491712053,7.0915,141.02,140.98,7.0931]
[1728491712562,30.03417641,141.05,140.97,19.15270772]
[1728491712767,20.0,141.02,140.99,7.0923]
[1728491712949,16.6225,141.08,141.0,16.98759412]
[1728491713257,16.6225,141.08,141.01,17.7289]
[1728491713464,16.6225,141.08,141.0,21.8745]